bitfinex/quotes_BTCUSD_20220105
["timestamp","ask_amount","ask_price","bid_price","bid_amount"]
[1641341476150,0.28438608,45895.0,45894.0,0.005]
[1641341476349,0.49355256,45895.0,45894.0,0.005]
[1641341476549,0.54355256,45895.0,45894.0,0.005]
[1641341476947,0.85027556,45895.0,45894.0,0.005]
[1641341477352,0.85027556,45895.0,45887.0,0.05448525]
[1641341477548,0.054486,45893.0,45887.0,0.05448525]
[1641341477792,0.054486,45893.0,45888.0,0.213942]
[1641341477993,0.062486,45893.0,45888.0,0.213942]
[1641341478193,0.008,45893.0,45888.0,0.213942]
[1641341478395,0.008,45893.0,45891.0,0.25330848]
[1641341478697,0.008,45893.0,45892.0,1.09305007]
[1641341478900,0.008,45893.0,45892.0,2.14637554]
[1641341479095,0.00128442,45910.0,45902.0,0.28668287]
[1641341479295,1.1477,45915.0,45902.0,0.28668287]
[1641341479494,1.1477,45915.0,45902.0,0.37596287]
[1641341479697,0.054458,45916.0,45907.0,0.2506218]
[1641341479900,0.054458,45916.0,45908.0,0.23031249]
[1641341480096,0.054458,45916.0,45909.0,0.42354804]
[1641341480299,0.3053,45923.0,45917.0,0.29826787]
[1641341480595,1.926,45924.0,45917.0,0.29826787]
[1641341480596,0.9762,45924.0,45917.0,0.29826787]
[1641341480797,0.26137691,45925.0,45917.0,0.29826787]
[1641341480997,0.054448,45924.0,45917.0,0.29826787]
[1641341481399,0.22,45923.0,45917.0,0.29826787]
[1641341481645,0.22,45923.0,45917.0,0.05444967]
[1641341481846,0.356723,45922.0,45912.0,0.10889934]
[1641341482047,0.054451,45921.0,45917.0,0.005]
[1641341482246,0.356723,45920.0,45917.0,0.005]
[1641341482646,0.34566557,45918.0,45917.0,0.005]
[1641341482846,0.70238857,45918.0,45917.0,0.005]
[1641341483146,0.75238857,45918.0,45917.0,0.005]
[1641341483348,0.054455,45917.0,45912.0,0.05445501]
[1641341483748,0.054455,45917.0,45914.0,0.05445352]
[1641341484348,0.049455,45917.0,45914.0,0.05445352]
[1641341484551,0.049455,45917.0,45912.0,0.008]
[1641341485391,0.049455,45917.0,45911.0,0.00128693]
[1641341485991,0.049455,45917.0,45912.0,0.26825112]
[1641341486393,0.049455,45917.0,45912.0,0.213796]
[1641341486793,0.054452,45920.0,45916.0,0.28883593]
[1641341486992,0.05,45921.0,45917.0,0.05444897]
[1641341487193,0.05,45921.0,45917.0,0.37865278]
[1641341487391,0.59378422,45923.0,45917.0,0.37865278]
[1641341487596,0.59378422,45923.0,45912.0,0.16335204]
[1641341487792,0.054453,45920.0,45912.0,0.16335204]
[1641341487993,0.59378422,45923.0,45911.0,0.00128693]
[1641341487994,0.10891,45922.0,45917.0,0.003]
[1641341488192,0.356723,45921.0,45917.0,0.003]
[1641341488797,0.10891,45922.0,45917.0,0.003]
[1641341489944,0.054455,45921.0,45913.0,0.52185047]
[1641341490148,0.158912,45921.0,45917.0,0.004]
[1641341491346,0.158912,45921.0,45913.0,0.52185047]
[1641341492046,0.158912,45921.0,45913.0,0.52685047]
[1641341492246,0.213369,45921.0,45913.0,0.52685047]
[1641341492996,0.213369,45921.0,45913.0,0.58130556]
[1641341493399,0.213369,45921.0,45913.0,0.57630556]
[1641341494001,0.054455,45921.0,45914.0,0.20084922]
[1641341494299,0.0001,45928.0,45922.0,0.00125307]
[1641341494500,0.0001,45928.0,45923.0,0.21373]
[1641341494800,0.0001,45928.0,45920.0,0.211531]
[1641341494801,0.0001,45928.0,45927.0,0.21371]
[1641341495003,0.0001,45928.0,45927.0,0.92668]
[1641341495199,0.0001,45928.0,45927.0,0.97668]
[1641341495504,0.0001,45928.0,45927.0,0.92668]
[1641341495700,0.0004,45929.0,45927.0,1.02038]
[1641341495701,0.0002,45929.0,45927.0,1.02038]
[1641341495899,0.0001,45930.0,45928.0,0.213702]
[1641341496099,0.0001,45933.0,45931.0,0.1]
[1641341496300,0.0003,45936.0,45932.0,0.257378]
[1641341496301,0.0002,45935.0,45932.0,0.257378]
[1641341496554,0.0002,45935.0,45934.0,0.213666]
[1641341496747,0.0003,45936.0,45935.0,0.06510827]
[1641341496945,0.0003,45936.0,45935.0,0.52452746]
[1641341497146,0.0003,45936.0,45935.0,0.62452746]
[1641341497548,4.19e-06,45939.0,45938.0,0.213645]
[1641341497751,0.00030419,45940.0,45938.0,0.53676522]
[1641341497947,0.00040419,45941.0,45939.0,0.49290081]
[1641341498150,0.00030419,45941.0,45940.0,1.90602041]
[1641341498547,0.00030419,45941.0,45940.0,2.55905041]
[1641341498948,0.0001,45942.0,45940.0,2.55905041]
[1641341499252,0.163514,45968.0,45953.0,0.0188]
[1641341499449,0.14051632,45963.0,45953.0,0.0188]
[1641341499949,0.03169632,45963.0,45953.0,0.0188]
[1641341500300,0.27848854,45960.0,45953.0,0.005]
[1641341500503,0.05881,45959.0,45953.0,0.005]
[1641341500709,0.0044,45959.0,45953.0,0.005]
[1641341500900,0.356723,45957.0,45953.0,0.005]
[1641341501099,0.35801483,45957.0,45953.0,0.005]
[1641341501398,0.35801483,45957.0,45942.0,0.48571909]
[1641341501399,0.46243283,45957.0,45942.0,0.48571909]
[1641341501597,0.46243283,45957.0,45945.0,0.30035919]
[1641341501598,0.20570983,45957.0,45945.0,0.30035919]
[1641341501798,0.054419,45952.0,45945.0,0.30035919]
[1641341501999,0.054419,45952.0,45944.0,0.30324793]
[1641341502199,0.054419,45952.0,45945.0,0.215594]
[1641341502401,0.22,45957.0,45945.0,0.215594]
[1641341502599,0.31249864,45953.0,45947.0,0.00121012]
[1641341502899,0.22,45957.0,45948.0,0.213577]
[1641341503204,0.22,45957.0,45951.0,0.33357149]
[1641341503401,0.0044,45959.0,45951.0,0.78775238]
[1641341503704,0.0044,45959.0,45952.0,0.41480346]
[1641341504145,0.0044,45959.0,45956.0,0.00121544]
[1641341504339,0.0044,45959.0,45957.0,1.633526]
[1641341504839,0.0003,45961.0,45958.0,1.42]
[1641341504840,0.0001,45961.0,45958.0,1.42]
[1641341505041,0.0001,45961.0,45960.0,1.63475654]
[1641341505240,0.0001,45961.0,45960.0,1.68475654]
[1641341505439,0.0001,45961.0,45960.0,1.78475654]
[1641341505841,0.0001,45961.0,45960.0,2.02942334]
[1641341506040,0.0001,45961.0,45960.0,2.56254049]
[1641341506238,0.0204,45963.0,45960.0,3.21528049]
[1641341506439,0.0204,45963.0,45962.0,1.633497]
[1641341506440,0.0158,45963.0,45962.0,1.633497]
[1641341506638,0.0156,45963.0,45962.0,2.436207]
[1641341506839,0.0137,45963.0,45962.0,2.899907]
[1641341507040,0.0004,45974.0,45964.0,1.633486]
[1641341507239,0.0004,45974.0,45967.0,1.42]
[1641341507439,0.0004,45974.0,45969.0,0.213455]
[1641341507639,0.0005,45976.0,45971.0,1.15]
[1641341507896,0.0005,45976.0,45975.0,0.00120556]
[1641341508094,0.0005,45976.0,45975.0,0.21462256]
[1641341508499,0.0005,45976.0,45975.0,0.53993641]
[1641341508697,0.0003,45985.0,45981.0,0.0001]
[1641341508997,0.0005,45991.0,45987.0,0.00123727]
[1641341508998,0.00209542,45989.0,45987.0,0.00123727]
[1641341509194,0.00209542,45989.0,45988.0,0.213338]
[1641341509595,0.00209542,45989.0,45987.0,0.00123727]
[1641341509794,0.00209542,45989.0,45983.0,0.29875804]
[1641341509998,0.00843036,45992.0,45984.0,1.04336]
[1641341510194,0.00843036,45992.0,45987.0,0.007]
[1641341510596,0.00843036,45992.0,45989.0,0.40178731]
[1641341511645,0.00343036,45992.0,45987.0,0.007]
[1641341511843,0.05905772,45992.0,45987.0,0.007]
[1641341512042,0.1,45991.0,45987.0,0.011]
[1641341512242,0.356723,45990.0,45987.0,0.011]
[1641341512641,0.31887523,45990.0,45987.0,0.011]
[1641341513043,0.05,45991.0,45987.0,0.011]
[1641341513241,0.00467718,45992.0,45987.0,0.011]
[1641341513442,0.00343036,45992.0,45985.0,0.24950651]
[1641341513649,0.054377,45990.0,45982.0,0.40917138]
[1641341514242,0.054377,45990.0,45978.0,0.27701892]
[1641341514445,0.05411984,45988.0,45977.0,0.00122374]
[1641341514643,0.154382,45989.0,45964.0,0.719052]
[1641341514644,0.054384,45986.0,45973.0,0.25461268]
[1641341514843,0.66389661,45985.0,45973.0,0.25461268]
[1641341515042,0.71389661,45985.0,45973.0,0.25461268]
[1641341516093,0.72389661,45985.0,45981.0,0.0031]
[1641341516492,9.348e-05,45984.0,45981.0,0.0031]
[1641341516693,9.348e-05,45983.0,45981.0,0.0031]
[1641341516893,0.05447848,45983.0,45981.0,0.0031]
[1641341517294,0.05447848,45983.0,45981.0,0.0001]
[1641341517897,2.05357677,45982.0,45981.0,0.0001]
[1641341518194,1.810423,45982.0,45981.0,0.0001]
[1641341518597,1.960423,45982.0,45981.0,0.0001]
[1641341518799,2.110423,45982.0,45981.0,0.0001]
[1641341519048,0.356723,45982.0,45981.0,0.0001]
[1641341519251,0.05447848,45983.0,45981.0,0.0001]
[1641341520048,0.68189702,45982.0,45981.0,0.0001]
[1641341520247,0.60862002,45982.0,45981.0,0.0011]
[1641341520748,0.75862002,45982.0,45981.0,0.0011]
[1641341521358,0.75862002,45982.0,45981.0,0.0001]
[1641341521359,0.65862002,45982.0,45981.0,0.0001]
[1641341522149,0.65862002,45982.0,45981.0,0.0021]
[1641341523491,0.65862002,45982.0,45981.0,0.0001]
[1641341523997,0.60862002,45982.0,45981.0,0.0001]
[1641341524193,0.60862002,45982.0,45981.0,0.0071]
[1641341524393,0.47189702,45982.0,45981.0,0.0071]
[1641341524894,0.47119702,45982.0,45981.0,0.0071]
[1641341525094,0.22,45982.0,45981.0,0.0071]
[1641341525395,0.27,45982.0,45981.0,0.0001]
[1641341525594,0.265,45982.0,45981.0,0.0001]
[1641341526199,0.265,45982.0,45981.0,0.0061]
[1641341526839,0.22,45982.0,45981.0,0.0061]
[1641341527239,0.22008369,45982.0,45981.0,0.0061]
[1641341527441,0.20504687,45982.0,45981.0,0.0001]
[1641341528240,0.20504687,45982.0,45981.0,0.0081]
[1641341529339,0.20504687,45982.0,45981.0,0.0001]
[1641341530141,0.20504687,45982.0,45981.0,0.08112505]
[1641341530400,0.20504687,45982.0,45981.0,0.34450505]
[1641341530600,0.20504687,45982.0,45981.0,0.80073012]
[1641341530800,0.20504687,45982.0,45981.0,1.69073012]
[1641341531003,0.20504687,45982.0,45981.0,2.01704128]
[1641341531202,0.20504687,45982.0,45981.0,2.42709307]
[1641341531400,0.20504687,45982.0,45981.0,2.42009307]
[1641341531599,0.20504687,45982.0,45981.0,1.20378191]
[1641341531999,0.20504687,45982.0,45981.0,0.99223125]
[1641341532200,0.20504687,45982.0,45981.0,1.00323125]
[1641341532700,0.20004687,45982.0,45981.0,2.60568249]
[1641341532901,0.00343036,45992.0,45985.0,8.369e-05]
[1641341533300,0.00343036,45992.0,45990.0,0.01898335]
[1641341533501,0.00343036,45992.0,45991.0,0.57618257]
[1641341533700,0.00343036,45992.0,45991.0,0.65894257]
[1641341533899,0.00343036,45992.0,45991.0,0.9348279]
[1641341534148,0.00343036,45992.0,45991.0,0.9458279]
[1641341534353,0.00343036,45992.0,45991.0,0.66994257]
[1641341534549,0.00343036,45992.0,45991.0,0.45662257]
[1641341534848,0.00343036,45992.0,45991.0,0.37386257]
[1641341535249,0.00343036,45992.0,45991.0,0.011]
[1641341535448,0.00343036,45992.0,45986.0,0.28496797]
[1641341535649,0.27216508,45992.0,45985.0,0.0135864]
[1641341536053,0.26716508,45992.0,45985.0,0.0135864]
[1641341536251,0.054374,45990.0,45985.0,0.00731903]
[1641341536651,0.054374,45990.0,45986.0,0.28542888]
[1641341537252,0.0003,45993.0,45987.0,0.213339]
[1641341537451,0.0003,45993.0,45988.0,0.45032588]
[1641341537895,0.0001202,45992.0,45988.0,0.45032588]
[1641341538297,0.0001202,45992.0,45988.0,0.45632588]
[1641341539096,0.0001202,45992.0,45990.0,0.00122522]
[1641341539298,0.0001202,45992.0,45988.0,0.006]
[1641341539500,0.0001202,45992.0,45985.0,0.06532203]
[1641341539797,0.32004245,45991.0,45985.0,0.06532203]
[1641341539998,0.054375,45990.0,45985.0,0.06532203]
[1641341540297,0.054375,45990.0,45989.0,0.35585442]
[1641341540498,0.0051202,45992.0,45989.0,0.35585442]
[1641341540499,0.0051202,45992.0,45989.0,0.56918642]
[1641341540697,0.0051202,45992.0,45990.0,0.213326]
[1641341541400,0.0051202,45992.0,45990.0,0.301896]
[1641341541647,0.0001202,45992.0,45990.0,0.56632945]
[1641341541844,0.0001202,45992.0,45990.0,0.301896]
[1641341542245,0.0001202,45992.0,45990.0,0.312896]
[1641341543445,0.0001202,45992.0,45991.0,1.49837022]
[1641341543646,0.0001202,45992.0,45991.0,1.71169022]
[1641341543847,0.0001202,45992.0,45991.0,0.41169022]
[1641341544044,0.0001202,45992.0,45991.0,0.21332]
[1641341544244,0.0001202,45992.0,45991.0,0.22232]
[1641341545498,0.0001202,45992.0,45991.0,0.21332]
[1641341545697,0.0001202,45992.0,45991.0,2.14562]
[1641341546297,0.0001202,45992.0,45991.0,2.15562]
[1641341547599,0.0001202,45992.0,45991.0,2.14562]
[1641341548000,0.0001202,45992.0,45991.0,0.86562]
[1641341548201,0.0001202,45992.0,45991.0,0.87562]
[1641341548600,0.0003601,45993.0,45991.0,0.87562]
[1641341548601,0.0003,45993.0,45991.0,0.87562]
[1641341548799,0.0003,45993.0,45991.0,0.7123]
[1641341549045,0.0003,45993.0,45991.0,0.6623]
[1641341549445,0.0003,45993.0,45991.0,0.6523]
[1641341550248,0.0003,45993.0,45991.0,0.6603]
[1641341550448,0.0003,45993.0,45992.0,0.010037]
[1641341551249,0.0003,45993.0,45992.0,0.223351]
[1641341552352,0.0003,45993.0,45992.0,0.229351]
[1641341552823,0.0003,45993.0,45992.0,0.016037]
[1641341553420,0.054673,45993.0,45992.0,0.016037]
[1641341553621,0.054673,45993.0,45992.0,0.010037]
[1641341553922,0.0003,45993.0,45992.0,0.010037]
[1641341554322,0.0083,45993.0,45992.0,0.014037]
[1641341555626,0.0003,45993.0,45992.0,0.010037]
[1641341556324,0.0003,45993.0,45992.0,0.018037]
[1641341556950,0.357023,45993.0,45992.0,0.018037]
[1641341557554,0.56421634,45993.0,45992.0,0.010037]
[1641341557752,0.66228734,45993.0,45992.0,0.010037]
[1641341558150,0.455094,45993.0,45992.0,0.010037]
[1641341558450,0.467094,45993.0,45992.0,0.010037]
[1641341558851,0.567094,45993.0,45992.0,0.010037]
[1641341559654,0.555094,45993.0,45992.0,0.010037]
[1641341560295,0.564094,45993.0,45992.0,0.010037]
[1641341560497,1.074094,45993.0,45992.0,0.010037]
[1641341560695,0.564094,45993.0,45992.0,0.010037]
[1641341561096,0.549094,45993.0,45992.0,0.010037]
[1641341561697,0.540094,45993.0,45992.0,0.010037]
[1641341563702,0.440094,45993.0,45992.0,0.010037]
[1641341564157,0.396394,45993.0,45992.0,0.010037]
[1641341564356,0.00175443,46003.0,46000.0,0.2067644]
[1641341564956,0.054569,46001.0,46000.0,0.2067644]
[1641341565156,0.0132356,45993.0,45992.0,0.010037]
[1641341566455,0.0132356,45993.0,45992.0,0.012037]
[1641341567157,0.0132356,45993.0,45992.0,9.012037]
[1641341567557,0.0132356,45993.0,45992.0,9.002]
[1641341568509,0.0272356,45993.0,45992.0,9.001]
[1641341569708,0.0132356,45993.0,45992.0,9.0]
[1641341570309,0.0262356,45993.0,45992.0,9.001]
[1641341571549,0.0132356,45993.0,45992.0,9.0]
[1641341571749,0.0132356,45993.0,45992.0,9.26550055]
[1641341572154,1.4132356,45993.0,45992.0,3.27978171]
[1641341572355,1.4132356,45993.0,45992.0,1.75343105]
[1641341572356,2.1032356,45993.0,45992.0,1.75343105]
[1641341572557,2.5098786,45993.0,45992.0,0.94173105]
[1641341572751,1.48601402,45992.0,45985.0,8.369e-05]
[1641341572951,1.95754484,45986.0,45985.0,8.369e-05]
[1641341573155,2.94301059,45986.0,45985.0,8.369e-05]
[1641341573354,0.356643,45982.0,45955.0,0.28913513]
[1641341573552,0.00124137,45970.0,45955.0,0.70913513]
[1641341573753,0.0437,45969.0,45955.0,0.42123513]
[1641341573954,0.0437,45969.0,45955.0,0.41986644]
[1641341574152,0.054414,45962.0,45955.0,0.41986644]
[1641341574352,0.054419,45959.0,45955.0,0.003]
[1641341574552,0.956643,45956.0,45955.0,0.003]
[1641341574753,0.400343,45956.0,45955.0,0.003]
[1641341574953,0.71434335,45956.0,45955.0,0.003]
[1641341575153,0.81434335,45956.0,45955.0,0.003]
[1641341575402,0.53,45955.0,45951.0,0.004]
[1641341575601,0.356643,45952.0,45951.0,0.004]
[1641341575805,0.62953281,45952.0,45951.0,0.004]
[1641341576001,0.77951571,45952.0,45951.0,0.004]
[1641341576400,0.80351571,45952.0,45951.0,0.004]
[1641341576605,0.80476284,45952.0,45951.0,0.004]
[1641341576802,0.76106284,45952.0,45951.0,0.004]
[1641341577704,0.73706284,45952.0,45951.0,0.004]
[1641341578102,0.78076284,45952.0,45951.0,0.004]
[1641341578307,0.78576284,45952.0,45951.0,0.33820308]
[1641341578505,0.405343,45952.0,45951.0,0.33820308]
[1641341579552,0.0437,45952.0,45951.0,0.79782595]
[1641341579757,0.0049,45968.0,45951.0,1.02611395]
[1641341579952,0.00127613,45971.0,45954.0,0.00120899]
[1641341580353,0.21961283,45969.0,45954.0,0.00120899]
[1641341580550,0.00127613,45971.0,45964.0,0.24706865]
[1641341580752,0.356643,45969.0,45964.0,0.24706865]
[1641341580956,0.054402,45968.0,45964.0,0.24706865]
[1641341581352,0.054402,45968.0,45961.0,0.01323085]
[1641341581752,0.054402,45968.0,45956.0,0.27550313]
[1641341582353,0.054402,45968.0,45961.0,0.27682079]
[1641341583897,0.274402,45968.0,45961.0,0.27682079]
[1641341584394,0.274402,45968.0,45961.0,0.27882079]
[1641341585497,0.098105,45967.0,45961.0,0.002]
[1641341585697,0.411049,45966.0,45957.0,0.06527797]
[1641341585899,0.454749,45966.0,45957.0,0.06527797]
[1641341586301,0.6793609,45966.0,45957.0,0.06527797]
[1641341586556,0.454749,45966.0,45957.0,0.06827797]
[1641341586751,0.098106,45966.0,45957.0,0.06827797]
[1641341587250,0.054406,45963.0,45957.0,0.06827797]
[1641341587650,0.054406,45963.0,45957.0,0.06527797]
[1641341588350,0.054406,45963.0,45959.0,0.32353538]
[1641341589650,0.054406,45963.0,45957.0,0.06527797]
[1641341589850,0.054409,45961.0,45957.0,0.06527797]
[1641341590051,0.054409,45960.0,45957.0,0.06527797]
[1641341590600,0.054409,45960.0,45957.0,0.06827797]
[1641341591001,0.054403,45963.0,45958.0,0.26022146]
[1641341592499,0.054403,45963.0,45958.0,0.26222146]
[1641341593199,0.054403,45963.0,45958.0,0.002]
[1641341593699,0.054403,45963.0,45961.0,0.010044]
[1641341593899,0.356643,45962.0,45961.0,0.010044]
[1641341594148,0.406643,45962.0,45961.0,0.010044]
[1641341594545,0.406643,45962.0,45961.0,0.012044]
[1641341595747,0.406643,45962.0,45961.0,0.010044]
[1641341595949,0.054403,45963.0,45961.0,0.430044]
[1641341596348,0.054399,45966.0,45961.0,0.430044]
[1641341596548,0.054399,45966.0,45961.0,0.433044]
[1641341596751,0.22,45968.0,45961.0,0.433044]
[1641341596948,0.22,45968.0,45962.0,0.31861895]
[1641341597898,0.22,45968.0,45961.0,0.010044]
[1641341598097,0.054399,45966.0,45961.0,0.010044]
[1641341598297,0.356643,45965.0,45961.0,0.010044]
[1641341598497,0.356643,45965.0,45961.0,0.011044]
[1641341599305,0.054399,45966.0,45961.0,0.011044]
[1641341600099,0.108813,45964.0,45961.0,0.011044]
[1641341600302,0.400343,45963.0,45961.0,0.010044]
[1641341600500,0.356643,45962.0,45961.0,0.011044]
[1641341600700,0.400343,45962.0,45961.0,0.011044]
[1641341600900,0.450343,45962.0,45961.0,0.011044]
[1641341601103,1.75187274,45962.0,45961.0,0.011044]
[1641341601302,1.8031414,45962.0,45961.0,0.011044]
[1641341601569,1.7594414,45962.0,45961.0,0.011044]
[1641341601769,1.7594414,45962.0,45961.0,0.010044]
[1641341602369,1.7094414,45962.0,45961.0,0.010044]
[1641341602872,1.1494414,45962.0,45961.0,0.010044]
[1641341603469,0.85858546,45962.0,45961.0,0.010044]
[1641341603669,0.50291166,45962.0,45961.0,0.010044]
[1641341603869,0.50291166,45962.0,45955.0,0.01220361]
[1641341603870,0.49286766,45962.0,45955.0,0.01220361]
[1641341604071,0.0437,45961.0,45955.0,0.01220361]
[1641341604271,0.054409,45959.0,45953.0,0.26776481]
[1641341604476,0.013,45962.0,45954.0,0.45100608]
[1641341604670,0.013,45962.0,45956.0,0.30227769]
[1641341604871,0.013,45962.0,45960.0,0.33140662]
[1641341605074,0.013,45962.0,45961.0,0.28851785]
[1641341605701,0.054401,45964.0,45961.0,0.28851785]
[1641341605900,0.054401,45964.0,45956.0,0.00124119]
[1641341606102,0.0437,45963.0,45951.0,0.004]
[1641341606300,0.55442524,45962.0,45952.0,0.27234528]
[1641341606502,0.04897976,45955.0,45951.0,0.004]
[1641341607400,0.04897976,45955.0,45951.0,0.35651395]
[1641341607602,0.054409,45958.0,45951.0,0.35651395]
[1641341608400,0.060409,45958.0,45957.0,0.33340072]
[1641341609855,0.054405,45960.0,45957.0,0.33340072]
[1641341610253,0.11005994,45964.0,45957.0,0.33340072]
[1641341610454,0.007,45960.0,45957.0,0.33540072]
[1641341610753,0.007,45960.0,45959.0,0.00129508]
[1641341610953,0.007,45960.0,45959.0,1.98985682]
[1641341611151,0.0001,45960.0,45959.0,2.31159448]
[1641341611357,0.03,45963.0,45961.0,0.00120822]
[1641341611553,0.03,45963.0,45962.0,0.228218]
[1641341611554,0.0001,45963.0,45962.0,0.228218]
[1641341611754,0.0001,45963.0,45962.0,0.48252578]
[1641341611954,0.0001,45963.0,45962.0,0.53252578]
[1641341612153,0.0001,45963.0,45962.0,0.48252578]
[1641341612555,0.0051,45963.0,45962.0,0.48652578]
[1641341612997,0.0051,45963.0,45962.0,0.004]
[1641341613698,0.0001,45963.0,45958.0,0.06527674]
[1641341613898,0.054406,45962.0,45958.0,0.06527674]
[1641341614298,0.054406,45962.0,45959.0,0.28662023]
[1641341614500,0.059406,45962.0,45959.0,0.28662023]
[1641341614900,0.113812,45962.0,45959.0,0.28662023]
[1641341615397,0.113812,45962.0,45958.0,0.07027674]
[1641341615899,0.054406,45962.0,45958.0,0.06527674]
[1641341616298,0.054406,45962.0,45958.0,0.35212969]
[1641341616548,0.057406,45962.0,45958.0,0.35712969]
[1641341616749,0.057406,45962.0,45958.0,0.07027674]
[1641341617751,0.054406,45962.0,45958.0,0.06527674]
[1641341618152,0.054406,45962.0,45959.0,0.228233]
[1641341618551,0.059406,45962.0,45959.0,0.228233]
[1641341620153,0.005,45962.0,45959.0,0.228233]
[1641341620399,0.004,45962.0,45959.0,0.233233]
[1641341621197,0.0584,45962.0,45959.0,0.233233]
[1641341621598,0.0584,45962.0,45959.0,0.005]
[1641341622603,0.0584,45962.0,45958.0,0.06527674]
[1641341622604,0.0544,45962.0,45958.0,0.06527674]
[1641341622804,0.0544,45962.0,45959.0,0.228236]
[1641341622999,0.2201,45963.0,45959.0,0.228236]
[1641341624045,0.274498,45963.0,45959.0,0.228236]
[1641341624249,0.274498,45963.0,45960.0,0.21759494]
[1641341624646,0.2201,45963.0,45958.0,0.11967698]
[1641341624846,0.2201,45963.0,45959.0,0.228234]
[1641341626048,0.054401,45962.0,45959.0,0.228234]
[1641341626449,0.054401,45962.0,45959.0,0.232234]
[1641341626648,0.054401,45962.0,45959.0,0.28663229]
[1641341626848,0.05426,45962.0,45959.0,0.28663229]
[1641341627350,0.05426,45962.0,45959.0,0.232234]
[1641341627550,0.05426,45962.0,45959.0,0.282234]
[1641341627996,0.05426,45962.0,45959.0,0.004]
[1641341628195,0.05426,45962.0,45960.0,0.22823]
[1641341628396,0.2201,45963.0,45960.0,0.22823]
[1641341628695,0.004,45962.0,45960.0,0.22823]
[1641341629095,0.004,45962.0,45961.0,1.15952042]
[1641341629296,0.004,45962.0,45961.0,1.38774442]
[1641341629697,0.004,45962.0,45961.0,1.168224]
[1641341629897,0.2201,45963.0,45961.0,1.168224]
[1641341630095,0.2201,45963.0,45962.0,1.278218]
[1641341630304,0.0750739,45963.0,45962.0,1.95714255]
[1641341630496,0.0650739,45963.0,45962.0,2.0084235]
[1641341630697,0.054385,45975.0,45963.0,0.0130461]
[1641341630897,0.054385,45975.0,45968.0,0.00129155]
[1641341631096,0.54395816,45988.0,45971.0,0.25515383]
[1641341631297,0.54395816,45988.0,45979.0,0.29546534]
[1641341631298,0.2903,45988.0,45979.0,0.29546534]
[1641341631561,0.108765,45982.0,45979.0,0.29546534]
[1641341632147,0.163146,45982.0,45979.0,0.29546534]
[1641341632344,0.163146,45982.0,45980.0,0.26552353]
[1641341632546,0.108762,45983.0,45981.0,0.22254401]
[1641341632547,0.054382,45983.0,45981.0,0.22254401]
[1641341633545,0.054382,45983.0,45982.0,0.51791914]
[1641341633747,0.054374,45987.0,45982.0,0.51791914]
[1641341633944,0.054374,45987.0,45982.0,0.28982214]
[1641341634145,0.054374,45987.0,45983.0,0.33016054]
[1641341634347,0.03087687,45992.0,45990.0,0.26263878]
[1641341634547,0.356643,45991.0,45990.0,0.04263878]
[1641341634945,0.03087687,45992.0,45990.0,0.04263878]
[1641341636598,0.03087687,45992.0,45990.0,0.04363878]
[1641341637600,0.03087687,45992.0,45991.0,1.85945496]
[1641341637801,0.03087687,45992.0,45991.0,1.86068814]
[1641341638103,0.01587687,45992.0,45991.0,1.86068814]
[1641341638500,0.01587687,45992.0,45991.0,1.86368814]
[1641341638702,0.0002,46001.0,45991.0,1.86368814]
[1641341638703,0.0002,46001.0,45992.0,0.01587687]
[1641341638904,0.0002,46001.0,45993.0,0.65726332]
[1641341639150,0.0002,46001.0,46000.0,0.29573983]
[1641341639352,0.0002,46001.0,45994.0,0.23970506]
[1641341639750,0.0002,46001.0,45995.0,0.26431808]
[1641341639957,0.054558,46001.0,45996.0,0.2824245]
[1641341640353,0.054558,46001.0,45997.0,0.2902812]
[1641341640552,0.0002,46001.0,45997.0,0.2902812]
[1641341640953,0.0002,46001.0,45997.0,0.51306084]
[1641341641156,0.054559,46001.0,45997.0,0.51306084]
[1641341641554,0.0002,46001.0,45997.0,0.2902812]
[1641341642155,0.054559,46001.0,45997.0,0.29152181]
[1641341642555,0.054559,46001.0,45997.0,0.29352181]
[1641341643405,0.0002,46001.0,45997.0,0.29352181]
[1641341643801,0.0002,46001.0,45997.0,0.29152181]
[1641341644002,0.00085804,46000.0,45997.0,0.29152181]
[1641341644405,0.00085804,46000.0,45998.0,0.05435715]
[1641341644903,0.00085804,46000.0,45997.0,0.29352181]
[1641341645303,0.00095804,46000.0,45997.0,0.29352181]
[1641341645604,0.22095804,46000.0,45998.0,0.50352111]
[1641341645804,0.22095804,46000.0,45998.0,0.05435705]
[1641341646007,0.27095804,46000.0,45998.0,0.05435705]
[1641341646305,0.27095804,46000.0,45998.0,0.27432543]
[1641341646558,0.22095804,46000.0,45999.0,1.637982]
[1641341646761,0.22095804,46000.0,45999.0,1.69523469]
[1641341646959,0.22095804,46000.0,45999.0,1.74523469]
[1641341647761,0.22095804,46000.0,45999.0,1.69523469]
[1641341647959,0.0001,46001.0,46000.0,1.41]
[1641341648159,0.0001,46001.0,46000.0,1.637975]
[1641341648662,0.0001,46001.0,46000.0,1.698321]
[1641341649660,0.0001,46001.0,46000.0,1.784081]
[1641341649861,0.0001,46001.0,46000.0,1.778081]
[1641341650501,0.0001,46001.0,46000.0,1.785081]
[1641341651703,0.0001,46001.0,46000.0,1.778081]
[1641341652303,0.00022734,46001.0,46000.0,1.778081]
[1641341652504,0.00022734,46001.0,46000.0,1.785081]
[1641341652903,0.00022734,46001.0,46000.0,1.835081]
[1641341653105,0.0004,46010.0,46007.0,1.41013101]
[1641341653306,0.0005,46020.0,46008.0,1.4101]
[1641341653307,0.0003,46012.0,46008.0,1.4101]
[1641341653507,0.0001,46012.0,46011.0,1.73917527]
[1641341653706,0.0005,46020.0,46012.0,1.4101]
[1641341653909,0.0001,46016.0,46015.0,1.70307785]
[1641341654150,0.0005,46020.0,46015.0,2.0558748]
[1641341654456,0.0002,46020.0,46019.0,1.63914061]
[1641341654653,0.0004,46021.0,46019.0,1.57952949]
[1641341654851,0.4427,46034.0,46023.0,0.116813]
[1641341655052,0.4427,46034.0,46025.0,1.41]
[1641341655251,0.4427,46034.0,46025.0,1.570501]
[1641341655653,0.4427,46034.0,46032.0,0.001203]